bitfinex-derivatives/quotes_ETHF0:USTF0_20250905
["timestamp","ask_amount","ask_price","bid_price","bid_amount"]
[1757074928798,0.5802,4435.5,4435.4,3.2078]
[1757074928985,0.5802,4435.5,4435.2,0.248]
[1757074928986,0.18580841,4435.5,4435.2,0.248]
[1757074929189,0.1858318,4435.4,4435.2,0.248]
[1757074929399,0.5802,4435.8,4435.2,0.248]
[1757074929694,1.20335942,4436.1,4435.3,7.43325]
[1757074929897,1.20335942,4436.1,4435.8,3.2078]
[1757074930199,1.20335942,4436.7,4435.8,3.4568]
[1757074930498,1.20335942,4436.7,4436.6,3.2078]
[1757074930697,1.20335942,4436.7,4436.6,3.4568]
[1757074931102,1.20335942,4436.7,4436.6,7.61348]
[1757074931291,34.5718,4439.0,4436.6,7.4568]
[1757074931491,31.364,4439.0,4438.2,3.2078]
[1757074931688,3.2078,4438.9,4438.2,3.2078]
[1757074932194,0.5802,4438.4,4438.2,3.2078]
[1757074932589,3.2078,4438.9,4438.2,3.2078]
[1757074932993,0.5802,4438.8,4438.2,3.2078]
[1757074934100,0.5802,4439.4,4438.2,3.2078]
[1757074934295,0.5802,4439.4,4438.7,3.2078]
[1757074934596,3.93453965,4439.5,4439.2,3.2078]
[1757074934801,3.93453965,4439.5,4439.2,3.4558]
[1757074935399,3.93453965,4439.5,4439.2,3.2078]
[1757074935599,3.93453965,4439.5,4439.3,0.248]
[1757074935797,3.93453965,4439.5,4439.2,3.2078]
[1757074935996,0.5802,4440.0,4439.3,0.248]
[1757074936199,0.248,4440.4,4439.7,3.2078]
[1757074936400,0.248,4440.4,4439.8,0.248]
[1757074936594,0.243,4440.5,4439.8,0.248]
[1757074936902,0.243,4440.5,4439.9,0.248]
[1757074937101,0.491,4441.0,4440.0,41.048]
[1757074937298,1.0712,4441.0,4440.2,3.2078]
[1757074937499,0.5802,4441.4,4440.2,3.2078]
[1757074937709,0.5802,4441.4,4440.3,0.248]
[1757074938004,0.5802,4441.4,4440.7,3.2078]
[1757074938204,0.248,4441.9,4440.9,0.0028]
[1757074938507,0.243,4442.5,4441.7,3.2078]
[1757074938705,0.243,4442.5,4441.7,3.4568]
[1757074939010,0.6662,4442.4,4441.7,3.4568]
[1757074939301,0.249,4442.9,4442.3,3.2078]
[1757074939498,0.6662,4443.0,4442.4,0.249]
[1757074939898,0.9316,4443.0,4442.5,0.249]
[1757074940300,0.9316,4443.0,4442.3,3.2078]
[1757074940510,0.6662,4442.4,4442.3,3.4568]
[1757074941507,0.6662,4442.4,4442.3,3.2078]
[1757074941804,0.2654,4442.5,4441.8,3.2078]
[1757074942106,0.6662,4441.9,4441.7,0.248]
[1757074942305,0.6662,4441.9,4441.7,3.4558]
[1757074942502,0.2654,4442.0,4441.7,44.0078]
[1757074942709,0.2654,4442.0,4441.7,44.2558]
[1757074942907,0.2654,4442.0,4441.7,3.4558]
[1757074943200,0.6662,4441.9,4441.7,3.4558]
[1757074943408,0.2654,4442.0,4441.7,3.4558]
[1757074943602,0.6662,4441.9,4441.7,3.4558]
[1757074944008,0.2654,4442.0,4441.7,3.4558]
[1757074944210,0.6662,4442.4,4441.7,3.2078]
[1757074944410,0.6662,4442.4,4441.7,3.4558]
[1757074944610,0.2654,4442.5,4441.7,3.2078]
[1757074944908,0.2654,4442.5,4439.4,1.01356]
[1757074944909,0.6662,4440.9,4440.7,3.2078]
[1757074945212,0.6662,4440.9,4440.0,3.2078]
[1757074945414,0.6662,4440.9,4440.1,0.248]
[1757074945912,0.248,4442.4,4441.2,0.40526]
[1757074946101,0.9142,4442.4,4441.6,3.2078]
[1757074946303,0.9142,4442.4,4441.7,0.248]
[1757074946814,0.9142,4442.4,4441.6,3.2078]
[1757074947014,0.9142,4442.4,4441.6,3.4558]
[1757074947209,0.9142,4442.4,4441.6,3.86102]
[1757074947403,0.248,4442.4,4441.6,3.2078]
[1757074947715,0.6662,4441.9,4441.7,0.248]
[1757074948517,0.2654,4442.0,4441.6,3.2078]
[1757074948812,0.6662,4441.9,4441.6,3.2078]
[1757074949213,0.2654,4442.0,4441.6,3.2078]
[1757074949614,0.6662,4441.9,4441.6,3.2078]
[1757074950707,0.2654,4442.0,4441.1,40.8]
[1757074950708,0.2654,4442.0,4441.1,3.2078]
[1757074950909,0.2654,4441.5,4440.6,3.2078]
[1757074951216,0.6662,4441.4,4440.6,3.2078]
[1757074952009,0.2654,4441.0,4440.6,3.2078]
[1757074952203,0.6662,4440.4,4439.9,3.2078]
[1757074952402,0.2654,4440.5,4439.9,3.2078]
[1757074952607,0.2654,4440.5,4440.0,40.8]
[1757074953007,0.2654,4440.5,4439.9,3.2078]
[1757074953008,0.6662,4440.4,4439.9,3.2078]
[1757074953210,0.9316,4440.0,4439.9,3.2078]
[1757074953408,0.2654,4440.5,4439.9,3.2078]
[1757074953409,0.9316,4440.5,4439.9,3.2078]
[1757074954118,0.9316,4440.0,4439.9,3.2078]
[1757074955716,0.6662,4439.9,4438.2,3.2078]
[1757074955911,0.2654,4439.0,4438.2,3.2078]
[1757074956118,0.2654,4439.0,4438.3,0.247]
[1757074956419,0.6662,4438.9,4438.3,0.247]
[1757074956719,0.6662,4438.9,4437.9,0.247]
[1757074957109,3.2078,4438.7,4438.0,40.8]
[1757074957314,0.6662,4438.6,4438.0,40.8]
[1757074957714,0.2654,4438.5,4438.0,40.8]
[1757074958014,0.6662,4438.4,4438.0,41.047]
[1757074958208,0.6662,4438.4,4438.0,0.247]
[1757074958415,0.6662,4438.4,4437.2,31.084]
[1757074958612,0.6662,4438.4,4437.3,40.8]
[1757074958916,0.6662,4438.1,4437.3,40.8]
[1757074959117,0.6662,4438.1,4437.4,0.247]
[1757074959313,0.6662,4437.9,4436.9,3.2078]
[1757074959619,0.6662,4437.9,4437.1,0.247]
[1757074959916,0.6662,4437.9,4437.2,40.8]
[1757074961513,0.6662,4437.9,4437.1,0.247]
[1757074961720,0.2654,4437.5,4436.4,3.2078]
[1757074961915,0.6662,4437.1,4436.4,3.2078]
[1757074962223,0.6662,4437.1,4436.5,40.8]
[1757074962418,0.5124,4437.5,4436.5,40.8]
[1757074962719,0.5124,4437.5,4436.6,0.247]
[1757074962911,0.5124,4437.5,4436.6,0.65268]
[1757074963712,0.5124,4437.5,4436.6,0.247]
[1757074963912,0.6662,4437.4,4436.6,0.247]
[1757074964217,0.6662,4437.4,4436.7,0.40567]
[1757074964520,3.2078,4437.7,4437.0,0.40564]
[1757074964723,3.2078,4437.7,4437.1,0.65163]
[1757074965016,3.2078,4437.7,4437.2,0.40562]
[1757074965215,3.2078,4437.7,4437.1,0.246]
[1757074965216,3.2078,4437.7,4437.5,0.40559]
[1757074965519,3.2078,4437.7,4437.5,0.6516]
[1757074965912,0.6662,4439.1,4438.4,0.40551]
[1757074966117,0.6662,4439.1,4438.7,0.40548]
[1757074966313,3.4732,4439.5,4438.8,0.246]
[1757074966520,0.6662,4439.4,4438.8,0.246]
[1757074966711,0.6662,4439.4,4438.7,0.40549]
[1757074966915,0.6662,4439.4,4438.8,0.246]
[1757074967528,0.6662,4439.4,4438.9,40.8]
[1757074967722,0.6662,4439.3,4438.9,40.8]
[1757074967923,4.1394,4439.0,4438.9,40.8]
[1757074968123,4.1394,4439.0,4438.2,0.246]
[1757074968827,0.6174,4438.9,4438.3,40.8]
[1757074969525,0.6174,4438.9,4438.3,41.046]
[1757074972021,3.4732,4439.0,4438.3,41.046]
[1757074972214,3.4732,4439.0,4438.4,0.246]
[1757074972623,0.6174,4438.9,4438.4,0.246]
[1757074972823,3.4732,4439.0,4438.4,0.246]
[1757074973024,0.6174,4438.9,4438.4,0.246]
[1757074973225,0.2536,4438.5,4438.3,40.8]
[1757074973527,3.4614,4438.5,4438.4,0.245]
[1757074973824,0.6174,4438.4,4437.9,0.40556]
[1757074974130,0.6174,4437.9,4437.1,0.245]
[1757074974335,0.6174,4437.9,4437.2,40.8]
[1757074974827,0.6174,4437.9,4437.2,41.20562]
[1757074975029,0.6174,4437.9,4437.2,40.8]
[1757074976832,0.6174,4437.9,4437.2,44.41343]
[1757074977034,0.6174,4437.9,4437.2,44.0078]
[1757074977232,0.6174,4437.9,4437.3,0.245]
[1757074977428,0.2536,4437.5,4437.2,44.0078]
[1757074977635,0.6174,4437.4,4437.3,0.245]
[1757074977831,0.6174,4437.4,4437.2,44.0078]
[1757074977832,0.6174,4437.4,4437.2,40.8]
[1757074978037,0.6174,4437.4,4437.3,0.245]
[1757074978736,3.4614,4437.5,4437.2,40.8]
[1757074979034,3.4614,4437.5,4437.1,0.245]
[1757074979235,0.6174,4437.4,4437.1,0.245]
[1757074979430,3.4614,4437.5,4437.1,41.045]
[1757074979628,0.6174,4437.2,4437.1,41.045]
[1757074980436,0.6174,4437.2,4436.9,3.2078]
[1757074980638,0.6174,4437.4,4437.0,0.245]
[1757074980836,3.4614,4437.5,4437.0,0.245]
[1757074981036,0.6174,4437.3,4437.1,40.8]
[1757074981237,3.4614,4437.5,4437.1,41.20563]
[1757074981534,4.0788,4437.5,4437.2,0.2794]
[1757074981731,0.2536,4438.0,4437.3,0.44001]
[1757074982033,0.6174,4437.9,4437.4,41.045]
[1757074982230,0.6174,4437.9,4437.4,40.8]
[1757074982429,0.6174,4437.9,4437.5,0.245]
[1757074983730,0.871,4437.0,4436.9,4.79807054]
[1757074984438,0.2536,4437.5,4437.1,0.40563]
[1757074984634,0.2536,4437.5,4437.2,0.245]
[1757074984833,0.6174,4437.4,4437.2,0.245]
[1757074985032,0.6174,4437.4,4437.3,0.40562]
[1757074985337,0.871,4437.5,4437.4,0.40561]
[1757074985542,0.6174,4437.5,4437.4,0.65061]
[1757074985734,0.2536,4437.5,4437.4,0.245]
[1757074986336,0.6174,4437.4,4437.3,0.245]
[1757074986726,0.6174,4437.4,4436.9,4.79807054]
[1757074986936,0.6174,4437.4,4437.0,0.64965]
[1757074987136,0.2536,4437.5,4437.1,41.20563]
[1757074987331,0.6174,4437.4,4437.1,40.8]
[1757074987732,0.2536,4437.5,4437.1,40.8]
[1757074987934,0.871,4437.0,4436.7,1.59027054]
[1757074988134,0.2536,4437.0,4436.7,1.59027054]
[1757074988335,0.6174,4436.4,4436.0,1.97368956]
[1757074988642,3.8252,4436.1,4436.0,1.27228956]
[1757074989133,0.2536,4436.0,4434.9,40.8]
[1757074989334,0.2536,4436.0,4434.7,0.8887]
[1757074989335,0.6174,4435.1,4434.7,0.8887]
[1757074989540,0.6174,4435.1,4434.7,0.245]
[1757074989838,0.6174,4435.1,4434.9,0.6437]
[1757074990039,0.6174,4435.1,4434.8,40.8]
[1757074990236,0.6174,4435.1,4434.9,0.6437]
[1757074990542,3.2078,4435.2,4434.6,0.245]
[1757074990835,3.8252,4435.2,4434.6,0.65086]
[1757074991137,3.2078,4435.2,4434.7,0.6437]
[1757074991339,3.2078,4435.2,4434.8,0.245]
[1757074991640,3.2078,4435.2,4434.9,0.6437]
[1757074991841,3.2078,4435.2,4434.8,0.245]
[1757074992041,3.2078,4435.2,4434.9,0.6437]
[1757074992241,3.2078,4435.2,4434.8,0.245]
[1757074992732,3.2078,4435.2,4434.6,0.6437]
[1757074993045,0.6174,4435.1,4434.8,0.6437]
[1757074993438,3.2078,4435.2,4434.8,0.40584]
[1757074993643,3.2078,4435.2,4434.9,0.6437]
[1757074993941,3.2078,4435.2,4435.1,0.6437]
[1757074994141,3.2078,4435.2,4435.1,0.8877]
[1757074994444,3.2078,4436.0,4435.6,0.6437]
[1757074994643,3.2078,4436.0,4435.8,0.6437]
[1757074994943,3.2078,4436.0,4435.9,0.6437]
[1757074996143,3.8252,4436.0,4435.9,0.6437]
[1757074996440,0.6174,4436.5,4435.9,0.6437]
[1757074997246,0.6174,4436.6,4436.0,40.8]
[1757074997945,3.4518,4436.7,4436.0,40.8]
[1757074998245,0.2775,4436.5,4436.0,41.4364]
[1757074998447,0.6475,4436.4,4436.1,0.6364]
[1757074999048,0.2775,4436.5,4436.1,0.6364]
[1757074999845,3.4518,4436.7,4436.0,41.0705]
[1757075000042,3.8553,4437.4,4436.6,0.6364]
[1757075000348,3.8553,4437.4,4436.6,0.8794]
[1757075001450,3.8553,4437.4,4436.7,0.6364]
[1757075001748,3.2078,4437.4,4436.7,0.6364]
[1757075001952,3.2078,4437.4,4437.3,0.6364]
[1757075002144,3.2078,4437.4,4437.3,0.8794]
[1757075002647,3.2078,4437.4,3901.0,0.00507336]
[1757075002648,0.6475,4437.3,4436.7,0.6364]
[1757075002852,0.6475,4437.3,4436.7,0.243]
[1757075003151,0.6475,4436.8,4436.3,0.243]
[1757075003351,0.6475,4436.8,4436.1,0.6364]
[1757075003556,0.6475,4436.8,4435.7,3.4508]
[1757075003846,0.6475,4436.4,4435.6,41.4364]
[1757075004053,0.6475,4435.8,4435.6,41.4364]
[1757075004251,0.6475,4435.8,4435.7,1.60038716]
[1757075004451,0.6475,4435.8,4435.7,2.23678716]
[1757075006854,3.2078,4435.9,4435.8,0.6364]
[1757075007055,3.2078,4435.9,4435.8,0.63751431]
[1757075007243,3.2078,4436.5,4435.8,0.63751431]
[1757075007449,0.243,4436.6,4435.9,0.243]
[1757075007753,3.2078,4436.5,4436.0,1.31263]
[1757075007955,3.2078,4436.5,4436.0,0.2705]
[1757075008156,3.8553,4436.5,4436.1,0.6364]
[1757075008551,0.6475,4436.5,4436.0,0.67623]
[1757075008752,0.6475,4436.5,4436.1,0.6364]
[1757075009059,0.6475,4436.5,4436.2,0.6364]
[1757075009355,0.243,4436.6,4436.1,0.40572]
[1757075009857,0.243,4436.6,4436.0,0.2705]
[1757075009858,0.6475,4436.9,4436.4,0.4057]
[1757075010060,0.6475,4437.0,4436.3,0.8794]
[1757075010258,0.925,4437.0,4436.3,0.8794]
[1757075010657,0.925,4437.0,4436.3,1.28511]
[1757075010960,0.925,4437.0,4436.3,0.8794]
[1757075011158,0.925,4437.0,4436.3,0.6364]
[1757075011453,0.925,4437.0,4436.4,0.243]
[1757075012253,0.6475,4436.5,4436.4,0.243]
[1757075012458,0.6475,4436.5,4436.1,0.8784]
[1757075012661,0.6475,4436.5,4436.2,0.6364]
[1757075013055,0.6475,4436.5,4436.1,0.242]
[1757075013557,0.6475,4436.5,4436.1,0.64773]
[1757075013759,3.2078,4436.6,4436.1,0.8784]
[1757075013955,3.2078,4436.6,4436.2,0.6364]
[1757075014157,0.6475,4436.5,4436.2,0.6364]
[1757075014760,0.6475,4436.5,4436.1,0.40573]
[1757075014951,0.6475,4436.5,4436.1,1.04213]
[1757075015157,0.6475,4436.5,4436.2,0.6364]
[1757075015363,0.6475,4436.5,4436.1,0.40573]
[1757075015763,3.2078,4436.7,4436.1,0.6364]
[1757075016063,0.6475,4436.7,4436.3,0.40571]
[1757075016261,0.6475,4436.9,4436.1,1.04212]
[1757075017065,0.6475,4436.9,4436.2,0.40571]
[1757075017258,0.6475,4436.9,4436.3,0.6364]
[1757075017464,3.2078,4437.2,4436.8,0.40565]
[1757075017763,3.2078,4437.2,4436.9,0.40565]
[1757075018065,3.2078,4437.2,4437.1,0.6364]
[1757075018363,3.2078,4437.2,4437.1,1.04204]
[1757075019065,3.2078,4437.2,4437.1,41.84204]
[1757075021664,3.2078,4437.2,4437.1,41.4364]
[1757075021863,3.8553,4437.8,4437.2,0.40562]
[1757075022060,0.6475,4438.4,4437.8,1.04197]
[1757075022261,0.925,4438.5,4437.9,0.6364]
[1757075022865,0.925,4438.5,4437.9,1.04196]
[1757075023162,0.925,4438.5,4438.0,0.40555]
[1757075023456,0.2775,4438.5,4438.0,0.40555]
[1757075023967,0.2775,4438.5,4437.9,0.40556]
[1757075024465,0.6475,4438.2,4437.9,0.40556]
[1757075024664,0.6475,4438.2,4438.0,0.6364]
[1757075024864,0.4229,4438.1,4438.0,1.5099]
[1757075025362,1.0704,4438.9,4438.8,0.4308]
[1757075025564,1.0704,4438.9,4438.8,1.0672]
[1757075025766,1.5273,4438.9,4438.8,0.4308]
[1757075025968,0.6475,4438.8,4438.5,0.6364]
[1757075026166,1.0704,4438.6,4438.5,1.0672]
[1757075026668,0.4229,4438.6,4438.5,1.5099]
[1757075026870,4.2782,4438.9,4438.8,1.47268]
[1757075027169,0.4229,4438.9,4438.8,1.91538]
[1757075027372,3.2078,4439.5,4439.4,0.8735]
[1757075027570,3.2078,4439.5,4439.4,1.5099]
[1757075027763,1.5273,4439.9,4439.8,0.4308]
[1757075028468,3.4488,4440.1,4439.5,0.6364]
[1757075028668,1.5751,4439.6,4439.5,1.0921]
[1757075028869,1.5751,4439.6,4439.5,1.5234]
[1757075029072,0.8818,4439.6,4439.5,1.5234]
[1757075029265,0.8818,4439.6,4439.5,42.3234]
[1757075029463,0.8818,4440.0,4439.9,0.4557]
[1757075029662,0.6933,4439.9,4439.5,40.8]
[1757075029864,0.6933,4439.9,4439.6,0.6913]
[1757075030072,0.6933,4439.8,4439.7,0.6913]
[1757075030766,0.2634,4440.0,4439.5,40.8]
[1757075030970,0.2634,4439.5,4439.0,0.24]
[1757075031372,0.6933,4439.4,4439.1,40.8]
[1757075031768,3.2078,4439.4,4439.1,40.8]
[1757075032073,0.6933,4439.2,4439.1,40.8]
[1757075032276,0.6933,4439.2,4439.1,41.4913]
[1757075032875,1.5751,4439.2,4439.1,1.147]
[1757075033776,1.5751,4439.2,4439.1,0.4557]
[1757075034376,1.5751,4439.2,4439.1,1.147]
[1757075034678,1.5751,4439.2,4439.1,1.5783]
[1757075034870,3.2078,4439.4,4439.1,1.98374]
[1757075035076,1.5751,4439.9,4439.8,1.147]
[1757075035579,0.6933,4439.8,4439.4,0.6913]
[1757075035775,0.2634,4440.0,4439.4,1.147]
[1757075035776,1.5751,4439.5,4439.4,1.147]
[1757075036277,1.5751,4439.5,4439.4,0.4557]
[1757075036476,3.2078,4439.7,4439.5,0.40542]
[1757075036674,4.7829,4439.7,4439.6,0.887]
[1757075036869,1.5751,4439.4,4438.9,0.6913]
[1757075037073,0.4482,4439.1,4439.0,1.127]
[1757075037278,0.4482,4439.1,4439.0,1.8183]
[1757075037683,1.5751,4439.1,4439.0,1.8183]
[1757075039285,0.4482,4439.1,4439.0,2.0958]
[1757075039486,1.5751,4439.1,4439.0,1.8183]
[1757075040085,3.2078,4439.7,4439.1,1.5783]
[1757075040086,1.5751,4439.2,4439.1,1.5783]
[1757075040386,1.5751,4439.2,4439.1,1.8183]
[1757075041289,3.2078,4439.7,4439.1,1.127]
[1757075041487,0.4482,4439.3,4439.2,1.5783]
[1757075041689,1.5751,4439.3,4439.2,1.5783]
[1757075042491,0.4482,4439.3,4439.2,1.5783]
[1757075042784,3.9011,4439.7,4439.5,0.2775]
[1757075042990,3.2078,4439.7,4439.6,1.5783]
[1757075043490,3.2078,4439.7,4439.6,1.98371]
[1757075043691,3.2078,4439.7,4439.6,5.98371]
[1757075043893,3.2078,4440.5,4440.4,1.5783]
[1757075044199,1.5751,4441.0,4440.9,1.5783]
[1757075044587,0.4482,4441.0,4440.9,1.5783]
[1757075044790,0.6933,4441.4,4440.9,1.5783]
[1757075044986,0.96886,4441.2,4441.1,1.5783]
[1757075045289,1.66216,4441.2,4441.1,1.5783]
[1757075045495,0.96886,4441.2,4441.1,1.5783]
[1757075045693,2.09576,4441.2,4441.1,1.147]
[1757075045996,1.5751,4441.1,4441.0,1.8173]
[1757075046296,0.4482,4441.1,4441.0,1.8173]
[1757075046488,0.52066,4441.2,4441.1,0.6913]
[1757075046796,0.52066,4441.2,4441.1,1.5783]
[1757075047591,1.5751,4442.3,4441.7,0.6913]
[1757075047791,0.6933,4442.2,4441.7,0.9303]
[1757075048088,1.5751,4442.4,4441.7,0.9303]
[1757075048293,1.5751,4442.4,4441.7,1.33551]
[1757075048694,0.6933,4442.3,4441.8,0.4052]
[1757075049297,1.5751,4442.4,4442.3,0.4557]
[1757075049593,1.1415,4442.4,4442.3,1.5783]
[1757075049794,0.6933,4442.6,4442.4,0.6913]
[1757075049996,4.3493,4442.7,4442.6,0.4557]
[1757075050384,4.3493,4442.7,4442.6,0.887]
[1757075050589,4.7829,4442.7,4442.2,0.239]
[1757075050793,1.5751,4442.3,4441.7,0.6913]
[1757075051098,1.1415,4442.2,4442.1,0.4557]
[1757075051394,1.5751,4442.2,4442.1,0.6947]
[1757075051891,0.4482,4442.3,4442.2,0.6913]
[1757075052097,1.5751,4442.3,4442.2,0.6947]
[1757075052593,1.1415,4442.3,4442.2,1.8173]
[1757075052790,1.5751,4442.3,4442.2,0.6947]
[1757075052992,1.5751,4442.3,4442.2,0.4557]
[1757075053194,1.5751,4442.3,4442.2,0.6947]
[1757075053692,1.5751,4442.3,4442.2,0.239]
[1757075053993,1.5751,4442.3,4442.2,1.126]
[1757075054492,1.5751,4442.3,4442.2,0.887]
[1757075054696,1.5751,4442.3,4442.2,1.5783]
[1757075054896,1.5751,4442.3,4442.2,1.8173]
[1757075055698,0.9567,4442.5,4442.2,1.126]
[1757075055899,1.8385,4442.5,4442.4,0.887]
[1757075056106,1.8385,4442.5,4442.3,0.239]
[1757075056698,1.8385,4442.5,4441.9,0.6913]
[1757075056905,0.6933,4441.8,4441.3,0.239]
[1757075057201,1.1415,4441.4,4441.3,0.6947]
[1757075057394,0.6933,4441.9,4441.8,0.887]
[1757075057599,1.1415,4441.9,4441.8,1.5783]
[1757075057800,0.6933,4442.2,4441.9,0.6913]
[1757075057997,1.5751,4441.9,4441.8,0.239]
[1757075059504,0.6704,4441.8,4441.3,41.4251]
[1757075059706,1.5817,4441.7,4441.3,40.8]
[1757075059999,1.1873,4441.5,4441.4,0.6988]
[1757075060205,0.455,4441.5,4441.4,1.7526]
[1757075060596,1.1254,4441.5,4441.4,1.7526]
[1757075060994,1.8577,4441.5,4441.4,0.6988]
[1757075061404,1.8577,4441.5,4441.4,1.1275]
[1757075061606,1.8577,4441.5,4441.4,1.7526]
[1757075061906,1.5817,4441.5,4441.4,1.7526]
[1757075062509,1.1254,4441.5,4441.4,1.7526]
[1757075062702,0.276,4443.5,4441.8,0.6251]
[1757075062703,0.6704,4442.3,4441.8,0.6251]
[1757075062905,0.455,4442.0,4441.9,0.6988]
[1757075063100,0.6704,4441.9,4441.2,0.6251]
[1757075063302,3.4838,4442.0,4441.3,40.8]
[1757075063604,0.6704,4441.9,4441.4,0.239]
[1757075063799,0.455,4441.5,4441.4,1.1275]
[1757075064006,1.8577,4441.5,4441.4,0.8885]
[1757075064207,1.5817,4441.5,4441.4,1.1275]
[1757075064407,1.1254,4441.5,4441.4,1.7526]
[1757075064707,0.731,4442.0,4441.9,0.8885]
[1757075065010,1.4014,4442.0,4441.9,0.8885]
[1757075065412,1.1254,4442.0,4441.9,0.8885]
[1757075065609,0.6704,4442.5,4442.4,1.5136]
[1757075065811,0.276,4440.0,4439.3,3.2078]
[1757075066010,0.276,4439.5,4438.8,3.2078]
[1757075066215,3.4838,4439.5,4438.6,0.6251]
[1757075066410,7.70905,4439.5,4439.4,0.63658061]
[1757075066614,7.70905,4439.5,4438.3,3.38826539]
[1757075066816,3.2078,4438.4,4438.3,2.76316539]
[1757075067010,3.4488,4438.4,4437.3,0.6251]
[1757075067217,3.2078,4437.6,4437.5,0.8097]
[1757075067515,3.4488,4437.6,4437.5,0.8097]
[1757075068617,3.4488,4437.6,4437.0,0.8905]
[1757075069712,3.2078,4437.6,4437.5,0.6251]
[1757075069913,3.4488,4437.6,4437.5,0.8905]
[1757075071216,3.2078,4437.6,4437.5,0.8905]
[1757075071711,3.2078,4437.6,4437.0,0.8905]
[1757075071712,7.2078,4437.6,4437.0,0.8905]
[1757075071916,3.2078,4437.1,4436.4,0.6251]
[1757075072118,0.241,4437.0,4436.1,40.8]
[1757075072419,3.2078,4436.6,4436.1,40.8]
[1757075072814,3.2078,4436.6,4436.5,0.8905]
[1757075073422,3.4488,4436.6,4436.5,0.8905]
[1757075074114,3.2078,4436.6,4436.5,0.8905]
[1757075074415,3.4478,4436.6,4436.5,0.8905]
[1757075074913,3.2078,4437.2,4437.0,0.2654]
[1757075075121,3.2078,4437.2,4437.1,0.6251]
[1757075076918,0.24,4437.6,4437.5,0.2654]
[1757075077518,0.24,4437.6,4437.5,0.8905]
[1757075077919,0.24,4437.6,4437.5,0.6251]
[1757075078413,0.24,4437.6,4437.5,0.8905]
[1757075080324,3.2078,4437.7,4437.6,0.6251]
[1757075080528,3.4478,4437.7,4437.6,0.6251]
[1757075081828,3.2078,4438.2,4438.1,0.6251]
[1757075082018,3.4478,4438.2,4438.1,0.6251]
[1757075082220,3.2078,4438.2,4438.1,0.6251]
[1757075083628,3.2078,4438.2,4437.6,0.6251]
[1757075083827,3.2078,4437.7,4437.6,0.6251]
[1757075084631,0.24,4438.1,4437.5,0.8905]
[1757075084929,3.2078,4437.6,4437.5,0.8905]
[1757075086027,7.2078,4437.6,4437.0,0.8905]
[1757075086229,0.24,4437.5,4437.0,0.8905]
[1757075086422,3.2078,4437.1,4437.0,0.8905]
[1757075086622,3.4478,4437.1,4437.0,0.8905]
[1757075086927,3.44690099,4437.1,4437.0,0.8905]
[1757075088032,7.44690099,4437.1,4436.5,0.9151]
[1757075088225,3.2078,4436.6,4436.5,0.6497]
[1757075088933,3.2078,4436.6,4436.5,0.9155]
[1757075091622,2.7078,4436.6,4436.5,0.9155]
[1757075094734,2.7078,4436.6,4436.5,1.32119]
[1757075094935,0.239,4437.1,4437.0,0.9155]
[1757075094936,3.2078,4437.1,4437.0,0.9155]
[1757075095236,3.39975466,4437.1,4437.0,0.9155]
[1757075095433,0.19195466,4437.1,4437.0,0.9155]
[1757075095633,3.2078,4437.1,4437.0,0.9155]
[1757075096036,3.2078,4437.1,4437.0,1.32114]
[1757075096238,0.60944027,4437.1,4437.0,1.32114]
[1757075097641,0.60944027,4437.1,4437.0,0.9155]
[1757075099151,3.81724027,4437.1,4437.0,0.9155]
[1757075099438,3.2078,4437.1,4437.0,0.9155]
[1757075099842,3.3609,4437.1,4437.0,1.3605]
[1757075100742,3.753,4437.6,4437.5,0.9155]
[1757075101041,3.753,4437.6,4437.5,1.3605]
[1757075102145,3.514,4437.6,4437.5,1.3605]
[1757075102838,3.514,4437.6,4437.5,0.6497]
[1757075103144,3.514,4437.6,4437.5,0.9155]
[1757075103641,4.12530094,4437.6,4437.5,0.9155]
[1757075103942,4.12530094,4437.6,4437.5,1.3605]
[1757075104341,4.12530094,4437.6,4437.5,0.9155]
[1757075104542,3.97220094,4437.6,4437.5,1.7994]
[1757075104742,4.21120094,4437.6,4437.5,1.7994]
[1757075105038,3.81910094,4437.6,4437.5,2.205]
[1757075105241,3.81910094,4437.6,4437.5,6.43035]
[1757075105440,3.81910094,4437.6,4437.5,5.7994]
[1757075105743,3.81910094,4437.6,4437.5,47.005]
[1757075105945,3.81910094,4437.6,4437.5,47.244]
[1757075107243,1.19317799,4438.2,4438.0,1.55525]
[1757075107446,1.19317799,4438.2,4438.1,1.7726]
[1757075108244,2.06717799,4438.2,4438.1,1.5336]
[1757075108547,1.86527799,4438.2,4438.1,0.6497]
[1757075108747,1.19317799,4438.2,4438.1,0.6497]
[1757075109747,0.6721,4438.1,4438.0,0.239]
[1757075109944,0.6721,4438.1,4437.5,0.2658]
[1757075110141,0.6721,4438.1,4437.5,0.6714]
[1757075110342,3.4468,4438.4,4437.7,0.40558]
[1757075110645,4.1189,4438.4,4437.6,0.6497]
[1757075112446,0.4517,4437.7,4437.6,1.0947]
[1757075112744,1.5461,4437.7,4437.6,1.0947]
[1757075113247,0.874,4437.7,4437.6,1.0947]
[1757075113450,0.4517,4437.7,4437.6,1.5336]
[1757075113749,3.2078,4437.8,4437.7,1.28948]
[1757075113947,3.2078,4437.8,4437.7,1.93918]